bitfinex-derivatives/quotes_ETHF0:USTF0_20250125
["timestamp","ask_amount","ask_price","bid_price","bid_amount"]
[1737816550155,0.48352,3309.5,3309.1,1.00281556]
[1737816550361,0.48356,3309.3,3309.1,1.00281556]
[1737816550560,4.33465713,3309.3,3309.1,1.00281556]
[1737816550857,0.48357,3309.2,3309.1,1.00281556]
[1737816551060,4.33464713,3309.3,3309.1,1.00281556]
[1737816551558,0.48357,3309.2,3309.1,0.51923556]
[1737816552261,0.48357,3309.2,3309.1,1.00281556]
[1737816552460,0.48357,3309.2,3309.1,0.51923556]
[1737816552759,0.97937,3309.2,3309.1,0.00453556]
[1737816556162,0.4958,3309.2,3309.1,0.48811556]
[1737816556665,0.48357,3309.2,3309.1,0.48810556]
[1737816558064,0.48357,3309.2,3309.1,0.00453556]
[1737816569771,1.58052639,3309.2,3309.1,0.00453556]
[1737816571768,2.80126045,3309.2,3309.1,0.00453556]
[1737816572072,0.48365,3308.7,3308.5,0.48366]
[1737816572459,0.4913,3308.6,3308.5,0.48366]
[1737816573665,4.19293,3308.8,3308.7,0.48364]
[1737816573865,3.2078,3308.8,3308.7,0.48364]
[1737816574866,0.48359,3309.1,3309.0,0.4836]
[1737816575272,0.48359,3309.1,3309.0,0.48358]
[1737816575468,3.2078,3309.2,3308.4,1.5201]
[1737816575676,3.69138,3309.2,3309.1,0.48358]
[1737816575877,3.2078,3309.2,3309.1,0.48358]
[1737816581287,3.2078,3309.2,3309.1,0.72489681]
[1737816581782,3.95304325,3309.5,3309.4,0.48354]
[1737816582877,4.43656325,3309.5,3309.4,0.48354]
[1737816583978,3.95304325,3309.5,3309.0,1.69959502]
[1737816584179,0.48355,3309.4,3309.0,1.69959502]
[1737816584676,0.48355,3309.4,3309.3,0.48355]
[1737816585073,0.48354,3309.4,3309.0,1.69959502]
[1737816585278,0.48354,3309.4,3309.3,0.48355]
[1737816586576,0.48354,3309.4,3309.0,1.69959502]
[1737816586577,4.43657325,3309.5,3309.4,0.48354]
[1737816586984,3.95304325,3309.5,3309.4,0.48354]
[1737816587389,4.43656325,3309.5,3309.4,0.48354]
[1737816591291,0.48355,3309.4,3309.3,0.48355]
[1737816591692,0.48358,3309.2,3309.1,0.48357]
[1737816592796,0.48358,3309.1,3309.0,1.4537]
[1737816592986,0.98038,3309.1,3309.0,1.4537]
[1737816593185,0.48363,3308.8,3308.4,0.48368]
[1737816593381,3.69146,3308.6,3308.4,0.95888]
[1737816593590,3.2078,3308.6,3308.5,0.48367]
[1737816593893,3.69146,3308.6,3308.5,40.8]
[1737816595189,3.2078,3308.6,3308.5,40.8]
[1737816595389,3.2078,3308.6,3308.5,41.28367]
[1737816596297,0.48364,3308.7,3308.5,41.28367]
[1737816600989,3.2078,3309.0,3308.5,41.28367]
[1737816601193,0.48365,3308.7,3308.5,41.28367]
[1737816601389,0.48365,3308.6,3308.5,40.8]
[1737816601696,0.98725,3308.6,3308.5,40.8]
[1737816604096,4.19505,3308.6,3308.5,40.8]
[1737816609604,0.938,3309.1,3308.5,40.8]
[1737816609605,3.2078,3309.0,3308.9,0.48361]
[1737816609803,3.6914,3309.0,3308.9,0.48361]
[1737816610299,3.6914,3309.0,3308.9,41.28361]
[1737816610801,3.2078,3309.0,3308.9,0.48361]
[1737816611202,3.2078,3309.0,3308.9,41.28361]
[1737816611905,3.2078,3309.0,3308.9,0.48361]
[1737816613204,3.2078,3309.0,3308.9,2.80130045]
[1737816614709,3.2078,3309.0,3308.9,0.48361]
[1737816614908,3.6914,3309.0,3308.9,0.48361]
[1737816615300,3.2078,3309.0,3308.9,0.48361]
[1737816615805,0.48358,3309.2,3308.7,0.4987]
[1737816616005,0.48358,3309.2,3309.1,0.48357]
[1737816617708,0.4798,3309.3,3309.0,0.48359]
[1737816617709,0.48358,3309.1,3309.0,0.48359]
[1737816618614,0.48358,3309.2,3309.1,0.48357]
[1737816619811,3.2078,3309.4,3308.7,0.4987]
[1737816620111,0.48356,3309.3,3309.2,0.48356]
[1737816621007,3.69135,3309.4,3309.3,0.48355]
[1737816621407,0.48356,3309.3,3309.2,0.48356]
[1737816625112,0.5131,3309.5,3309.0,0.24299869]
[1737816625312,0.48355,3309.3,3309.2,0.48356]
[1737816625806,0.48355,3309.3,3309.2,0.98626]
[1737816627615,1.47082,3309.6,3309.5,0.48352]
[1737816628314,0.48353,3309.5,3309.4,0.48352]
[1737816629814,0.9873,3309.6,3309.3,0.4867]
[1737816630017,0.48354,3309.4,3309.3,0.97024]
[1737816630211,0.48354,3309.4,3309.3,0.48354]
[1737816634824,3.2078,3309.4,3308.8,1.09664311]
[1737816635023,0.4836,3309.0,3308.9,0.4836]
[1737816636320,0.4836,3309.0,3308.9,0.48361]
[1737816638316,0.97727,3309.3,3309.2,0.48357]
[1737816639015,0.97727,3309.3,3309.2,0.96957]
[1737816640424,0.48357,3309.2,3309.1,0.48358]
[1737816640913,1.59034311,3309.3,3308.8,0.5155]
[1737816641113,0.48359,3309.1,3309.0,0.48358]
[1737816641323,0.48357,3309.2,3309.1,0.48357]
[1737816642518,0.4937,3309.3,3308.8,0.5155]
[1737816642725,3.69135,3309.4,3309.3,0.48355]
[1737816643622,0.48356,3309.3,3309.2,0.48356]
[1737816643822,0.48358,3309.2,3309.1,0.48357]
[1737816645822,3.2078,3309.4,3308.8,0.5155]
[1737816646025,0.48356,3309.3,3309.2,0.48356]
[1737816647831,3.2078,3309.4,3308.8,0.5155]
[1737816648025,3.2078,3309.4,3309.3,0.48355]
[1737816648726,1.0006,3309.7,3309.6,0.48351]
[1737816649923,1.0006,3309.7,3309.2,0.4981]
[1737816650227,0.48354,3309.5,3309.4,0.48353]
[1737816650531,0.5171,3309.7,3309.2,0.4981]
[1737816650532,0.48355,3309.3,3309.2,0.98166]
[1737816650725,3.69135,3309.3,3309.2,0.98166]
[1737816651121,4.21235,3309.3,3309.2,0.98166]
[1737816651428,4.21235,3309.3,3309.2,0.4981]
[1737816651931,0.96634,3309.4,3309.3,0.48355]
[1737816653126,0.4828,3309.4,3309.2,0.4981]
[1737816653325,0.48355,3309.3,3309.2,0.98166]
[1737816653923,0.48355,3309.3,3309.2,0.48356]
[1737816656828,3.2078,3309.7,3308.9,2.31684867]
[1737816657134,0.48352,3309.6,3309.5,0.48351]
[1737816658431,3.6913,3309.7,3309.6,0.48351]
[1737816661334,3.2078,3309.7,3309.2,1.0321]
[1737816661529,0.48352,3309.6,3309.5,0.48352]
[1737816662032,3.2078,3309.7,3309.2,1.27841103]
[1737816662234,0.48351,3309.6,3309.5,0.48351]
[1737816664038,3.2078,3309.7,3309.2,1.27841103]
[1737816664235,3.6913,3309.7,3309.6,0.48351]
[1737816665536,0.4835,3309.7,3309.6,0.48351]
[1737816667849,0.00453556,3309.8,3309.2,3.5952597]
[1737816668047,0.48802556,3309.8,3309.7,0.48349]
[1737816668241,0.00453556,3309.8,3309.2,4.8041597]
[1737816668450,0.4835,3309.7,3309.6,0.4835]
[1737816671050,0.48802556,3309.8,3309.7,0.48349]
[1737816671350,0.4835,3309.7,3309.6,0.48349]
[1737816671853,0.00453556,3309.8,3309.7,0.48349]
[1737816672449,0.4835,3309.7,3309.6,0.4835]
[1737816675353,0.00453556,3309.8,3309.5,0.4936]
[1737816675650,0.48351,3309.6,3309.5,0.97712]
[1737816678565,0.48802556,3309.8,3309.7,0.48349]
[1737816678958,0.48802556,3309.8,3309.7,41.28349]
[1737816679869,0.00453556,3309.8,3309.7,0.48349]
[1737816680160,0.00453556,3309.8,3309.7,1.48009]
[1737816680464,0.00453556,3309.8,3309.7,42.28009]
[1737816682569,1.0153,3310.4,3310.3,0.48341]
[1737816682767,3.69118,3310.5,3310.4,0.48339]
[1737816683069,3.2078,3310.5,3310.4,0.48339]
[1737816683271,3.69118,3310.5,3310.4,1.93789]
[1737816683660,3.2078,3310.5,3310.4,1.93789]
[1737816683868,3.69118,3310.5,3310.4,1.93789]
[1737816684164,3.2078,3310.5,3310.4,1.93789]
[1737816684368,3.69118,3310.5,3310.4,1.93789]
[1737816685066,3.2078,3310.5,3310.4,1.93789]
[1737816685369,3.69118,3310.5,3310.4,1.93789]
[1737816686169,3.2078,3310.5,3310.1,0.48795556]
[1737816686469,0.48342,3310.2,3310.1,0.48795556]
[1737816686860,0.48342,3310.2,3310.1,0.00453556]
[1737816687865,2.3159127,3310.2,3310.1,0.00453556]
[1737816688169,1.95972,3310.2,3310.1,0.00453556]
[1737816701074,0.48342,3310.2,3310.1,0.00453556]
[1737816701677,0.938,3310.3,3310.1,0.00453556]
[1737816701886,0.48342,3310.3,3310.1,0.48795556]
[1737816702084,0.48342,3310.3,3310.2,0.48342]
[1737816703086,0.48342,3310.3,3310.2,0.4739]
[1737816704890,0.48342,3310.3,3310.2,0.95732]
[1737816705486,3.6861,3310.5,3310.2,0.4739]
[1737816705692,0.4834,3310.4,3310.3,0.48341]
[1737816707092,3.69118,3310.5,3310.4,0.48339]
[1737816708095,0.48339,3310.4,3310.3,0.4834]
[1737816708495,3.2078,3310.5,3310.2,0.4739]
[1737816708691,0.48341,3310.3,3310.2,0.95731]
[1737816710196,0.4834,3310.4,3310.3,0.48341]
[1737816712091,3.2078,3310.5,3310.2,0.4739]
[1737816712290,3.2078,3310.5,3310.2,0.95731]
[1737816712291,0.48341,3310.3,3310.2,0.95731]
[1737816713496,0.48341,3310.3,3310.2,0.4739]
[1737816714697,0.48341,3310.3,3310.2,2.05334523]
[1737816715104,3.2078,3310.5,3310.2,1.56992523]
[1737816715298,3.2078,3310.5,3310.3,0.4834]
[1737816715299,0.4834,3310.4,3310.3,0.4834]
[1737816717494,3.69118,3310.5,3310.4,0.48339]
[1737816717800,3.69118,3310.5,3310.4,1.57941523]
[1737816718992,3.69118,3310.5,3310.4,0.48339]
[1737816724703,4.78720523,3310.5,3310.4,0.48339]
[1737816724911,0.4834,3310.4,3310.3,0.48339]
[1737816725204,4.78721523,3310.5,3310.4,0.48339]
[1737816726606,3.2078,3310.5,3310.4,0.48339]
[1737816727104,3.2078,3310.5,3310.4,42.30739]
[1737816729112,3.2078,3310.5,3310.4,42.54999049]
[1737816730799,0.00453556,3310.8,3310.7,0.48335]
[1737816745916,0.00453556,3310.8,3310.6,0.4926]
[1737816746112,0.48337,3310.6,3310.2,3.2078]
[1737816746313,0.97649,3310.5,3310.4,0.48338]
[1737816748117,1.58912523,3310.5,3310.3,40.8]
[1737816748312,0.48339,3310.4,3310.3,41.28339]
[1737816748612,1.58912523,3310.5,3310.3,40.8]
[1737816748919,2.07250523,3310.5,3310.4,0.48339]
[1737816751822,0.4931,3310.5,3310.4,0.48339]
[1737816752019,1.58912523,3310.5,3310.3,40.8]
[1737816752225,0.48339,3310.4,3310.3,40.8]
[1737816752614,1.58912523,3310.5,3310.1,0.00453556]
[1737816752814,1.57944523,3310.2,3310.1,0.48795556]
[1737816753327,1.09602523,3310.2,3310.1,41.28795556]
[1737816753623,1.57944523,3310.2,3310.1,41.28797556]
[1737816754113,1.57944523,3310.2,3310.1,40.80453556]
[1737816754316,1.57944523,3310.2,3310.1,0.00453556]
[1737816754820,1.57944523,3310.2,3310.1,0.48797556]
[1737816755016,1.09602523,3310.2,3310.1,0.48797556]
[1737816755615,1.57944523,3310.2,3310.1,0.48797556]
[1737816757415,1.09602523,3310.2,3310.1,0.48797556]
[1737816757717,4.69712,3310.3,3310.2,0.48342]
[1737816758119,4.69712,3310.3,3310.2,0.98402]
[1737816758419,4.69712,3310.3,3310.2,41.78402]
[1737816758919,4.69712,3310.3,3310.2,41.3006]
[1737816760723,4.69712,3310.3,3310.2,0.5006]
[1737816761025,4.69712,3310.3,3310.1,0.00453556]
[1737816761026,0.48342,3310.2,3310.1,0.00453556]
[1737816761225,0.48342,3310.2,3310.1,40.80453556]
[1737816763320,1.57944523,3310.2,3310.1,40.80453556]
[1737816763523,1.57944523,3310.2,3310.1,0.00453556]
[1737816764530,3.2078,3310.3,3310.2,0.48342]
[1737816765129,3.2078,3310.3,3310.2,41.28342]
[1737816769531,3.2078,3310.3,3310.2,41.52986096]
[1737816769730,0.00453556,3310.8,3310.7,0.48335]
[1737816769927,0.00453556,3310.8,3310.7,1.57937523]
[1737816775328,5.1979,3311.1,3310.7,1.57937523]
[1737816775329,3.2078,3311.1,3310.7,1.09602523]
[1737816775532,3.2078,3311.1,3310.6,0.24339179]
[1737816775533,3.2078,3311.1,3311.0,0.4833]
[1737816775730,0.48327,3311.3,3310.9,1.09602523]
[1737816776034,0.48327,3311.3,3311.1,0.48328]
[1737816776535,0.48327,3311.2,3311.1,0.48328]
[1737816777536,0.48327,3311.3,3311.1,0.48328]
[1737816777735,1.57927523,3311.4,3311.2,0.48327]
[1737816777929,0.48327,3311.3,3311.1,0.48328]
[1737816778836,0.48327,3311.3,3311.1,0.48329]
[1737816779235,1.09602523,3311.4,3311.0,1.5254]
[1737816779435,1.09602523,3311.4,3311.2,0.48327]
[1737816779738,0.48326,3311.3,3311.1,0.48328]
[1737816780335,1.57930523,3311.2,3311.0,2.0087]
[1737816781835,1.09602523,3311.2,3311.0,2.0087]
[1737816782039,0.48329,3311.1,3311.0,2.0087]
[1737816782240,1.09602523,3311.2,3311.0,2.0087]
[1737816782538,1.57931523,3311.2,3311.0,2.0087]
[1737816782934,1.09602523,3311.2,3311.0,2.0087]
[1737816783135,0.95829,3311.1,3311.0,2.0087]
[1737816783537,0.475,3311.1,3311.0,2.0087]
[1737816784835,1.09602523,3311.2,3311.1,0.48329]
[1737816785150,0.48326,3311.3,3311.2,0.48327]
[1737816786437,1.57102523,3311.4,3311.3,0.48326]
[1737816786641,0.475,3311.4,3311.3,1.57928523]
[1737816786842,0.95825,3311.4,3311.3,0.48326]
[1737816787142,0.95825,3311.4,3311.2,0.48327]
[1737816788041,0.48326,3311.3,3311.1,1.09602523]
[1737816788243,0.48326,3311.3,3311.1,1.57930523]
[1737816788542,0.48326,3311.3,3311.2,0.48327]
[1737816789342,0.48326,3311.3,3311.1,0.48328]
[1737816789942,0.48327,3311.2,3311.1,0.48328]
[1737816790140,1.57102523,3311.4,3311.0,2.00869]
[1737816790344,0.48329,3311.2,3311.0,2.00869]
[1737816791043,0.48329,3311.2,3311.0,1.5254]
[1737816791347,0.48329,3311.2,3311.0,2.00869]
[1737816792342,0.48329,3311.2,3311.1,0.48328]
[1737816792343,0.48328,3311.2,3311.1,0.48328]
[1737816794847,0.48327,3311.2,3311.1,0.48328]
[1737816795847,1.57102523,3311.4,3311.1,0.48328]
[1737816796238,0.48327,3311.2,3311.1,0.48328]
[1737816796536,0.48327,3311.3,3311.1,0.48328]
[1737816796741,0.48327,3311.3,3311.1,1.57930523]
[1737816798443,0.475,3311.4,3311.1,1.57930523]
[1737816798647,0.48327,3311.2,3311.1,1.57930523]
[1737816804148,0.475,3311.4,3311.1,1.09602523]
[1737816804455,0.48327,3311.3,3311.1,1.57930523]
[1737816805045,3.2078,3311.5,3311.1,1.09602523]
[1737816805251,0.4971,3312.0,3311.4,1.57927523]
[1737816805453,0.4971,3312.0,3311.9,1.57919523]
[1737816805653,0.4971,3312.0,3311.9,42.37919523]
[1737816806545,0.4971,3312.0,3311.9,1.57919523]
[1737816807253,1.49823,3312.2,3311.9,1.09602523]
[1737816807555,1.5163,3312.2,3312.1,0.48314]
[1737816808352,1.5163,3312.2,3312.0,0.5073]
[1737816808653,1.99943,3312.2,3312.0,0.5073]
[1737816808856,3.09545523,3312.2,3312.0,0.99045]
[1737816809458,3.09545523,3312.2,3312.0,0.5073]
[1737816809652,3.09545523,3312.2,3312.1,0.48314]
[1737816809955,0.48317,3311.9,3311.8,0.00453556]
[1737816811359,0.48316,3312.0,3311.8,0.48771556]
[1737816812052,2.61232523,3312.2,3311.8,0.48771556]
[1737816812253,0.48317,3311.9,3311.8,0.48771556]
[1737816813062,2.61232523,3312.2,3311.8,0.00453556]
[1737816813359,2.61232523,3312.2,3311.9,0.48316]
[1737816813558,0.48316,3312.0,3311.9,0.48316]
[1737816813962,0.48315,3312.1,3311.9,0.48316]
[1737816814662,0.48315,3312.1,3312.0,0.48316]
[1737816814960,3.09546523,3312.2,3312.0,0.48316]
[1737816815168,1.99944,3312.2,3311.9,1.09602523]
[1737816815360,1.99944,3312.2,3312.1,0.48314]
[1737816815761,1.5163,3312.2,3312.1,41.28314]
[1737816816458,0.48315,3312.1,3311.9,0.48317]
[1737816816761,3.09546523,3312.2,3312.0,0.48316]
[1737816816962,3.09546523,3312.2,3312.1,0.48314]
[1737816817364,1.5163,3312.2,3312.1,0.48314]
[1737816819062,0.48316,3312.0,3311.8,0.48771556]
[1737816819562,0.48316,3312.0,3311.9,0.48317]
[1737816820764,0.48316,3312.0,3311.8,0.00453556]
[1737816820765,6.9769296,3312.2,3312.1,0.48314]
[1737816820964,5.88090437,3312.2,3312.0,0.48314]
[1737816821166,5.39776437,3312.2,3312.0,0.48314]
[1737816821470,0.48314,3312.1,3312.0,0.48314]
[1737816821668,0.48316,3312.1,3311.9,0.48316]
[1737816822270,6.4937896,3312.2,3311.9,0.48316]
[1737816822472,0.48316,3312.0,3311.9,0.48316]
[1737816822675,0.48315,3312.1,3312.0,0.48316]
[1737816825065,1.5163,3312.2,3312.1,0.48314]
[1737816828676,1.99943,3312.2,3312.1,0.48314]
[1737816828873,1.5163,3312.2,3312.1,0.48314]
[1737816830873,1.99943,3312.2,3312.1,0.48314]
[1737816831981,1.5163,3312.2,3312.1,0.48314]
[1737816832479,1.99943,3312.2,3312.1,0.48314]
[1737816833475,1.5163,3312.2,3312.1,0.48314]
[1737816833976,1.99943,3312.2,3312.1,0.48314]
[1737816834479,1.5163,3312.2,3312.1,0.48314]
[1737816835784,1.88234958,3312.2,3312.1,0.48314]
[1737816835986,1.5163,3312.2,3312.1,0.48314]
[1737816836379,1.88234608,3312.2,3312.1,0.48314]
[1737816838084,1.5163,3312.2,3312.1,0.48314]
[1737816838473,1.88233456,3312.2,3312.1,0.48314]
[1737816839091,1.5163,3312.2,3312.1,0.48314]
[1737816840684,1.99943,3312.2,3312.1,0.48314]
[1737816841978,2.36550718,3312.2,3312.1,0.48314]
[1737816842384,1.99943,3312.2,3312.1,0.48314]
[1737816842885,1.5163,3312.2,3312.1,0.48314]
[1737816843886,1.99943,3312.2,3312.1,0.48314]
[1737816844382,1.5163,3312.2,3311.9,1.57482523]
[1737816844587,0.48316,3312.0,3311.9,0.4788]
[1737816845483,0.48316,3312.0,3311.9,0.96197]
[1737816847582,1.09602523,3312.0,3311.8,0.00453556]
[1737816847787,4.05715315,3311.9,3311.8,0.00453556]
[1737816848687,7.99306149,3311.9,3311.8,0.00453556]
[1737816850286,0.48322,3311.6,3311.5,40.8]
[1737816850491,1.57924523,3311.6,3311.5,40.8]
[1737816850694,5.83167139,3311.6,3311.5,40.8]
[1737816850994,0.48324,3311.5,3311.3,0.48325]
[1737816851489,0.5051,3311.4,3311.3,0.48325]
[1737816851689,4.51969708,3311.4,3311.3,0.48326]
[1737816854101,5.00294708,3311.4,3311.2,0.4981]
[1737816854399,5.00294708,3311.4,3311.3,0.48326]
[1737816854791,4.51969708,3311.4,3311.3,0.48326]
[1737816854991,4.51969708,3311.4,3311.3,41.28326]
[1737816856899,5.00294708,3311.4,3311.3,41.28326]
[1737816857206,5.00294708,3311.4,3311.3,40.8]
[1737816857402,4.51969708,3311.4,3311.3,40.8]
[1737816857697,4.51969708,3311.4,3311.3,41.28326]
[1737816857892,5.00294708,3311.4,3311.3,40.8]
[1737816858292,0.48327,3311.2,3311.1,1.58384079]
[1737816858698,4.39267401,3311.2,3311.1,42.38384079]
[1737816859697,3.90940401,3311.2,3311.1,42.38384079]
[1737816860307,3.99284693,3311.3,3311.1,42.38384079]
[1737816860605,4.95471693,3311.2,3311.1,41.28782556]
[1737816860805,5.46601693,3311.2,3311.1,41.28782556]
[1737816861201,1.47317,3311.2,3311.1,41.28782556]
[1737816861401,5.42655308,3311.2,3311.1,0.48782556]
[1737816862605,4.94328308,3311.2,3311.1,0.48782556]
[1737816863005,6.52257831,3311.2,3311.1,0.00453556]
[1737816864012,6.88782624,3311.2,3311.1,0.00453556]
[1737816864306,13.45995403,3311.2,3310.3,4.30382523]
[1737816864511,0.48336,3310.6,3310.4,0.48338]
[1737816864711,1.5555,3310.5,3310.4,0.48338]
[1737816865815,2.03888,3310.5,3310.4,0.48339]
[1737816866015,1.5555,3310.5,3310.4,0.48339]
[1737816866312,3.9096645,3310.5,3310.4,0.48339]
[1737816867215,2.62882523,3310.9,3310.3,4.30382523]
[1737816867515,5.62844572,3311.0,3310.6,1.09602523]
[1737816867811,5.62844572,3311.0,3310.9,0.48332]
[1737816868010,3.6932,3311.0,3310.9,0.48332]
[1737816868214,4.1765,3311.0,3310.7,0.4799]
[1737816868412,4.1765,3311.0,3310.8,41.28333]
[1737816869811,4.1765,3311.0,3310.8,0.48333]
[1737816871916,3.6932,3311.0,3310.9,0.48332]
[1737816872412,3.6932,3311.0,3310.7,0.4799]
[1737816872611,4.17651,3311.0,3310.8,0.48333]
[1737816873015,3.6932,3311.0,3310.7,0.4799]
[1737816873215,1.57935523,3310.9,3310.7,0.96324]
[1737816873412,1.09602523,3310.9,3310.7,0.96324]
[1737816873616,0.48333,3310.8,3310.7,0.4799]
[1737816874017,0.48338,3310.5,3310.4,0.9904]
[1737816874219,0.48339,3310.4,3310.3,0.4779]
[1737816874427,0.97699,3310.4,3310.3,0.4779]
[1737816874720,4.87048314,3310.4,3310.3,0.4779]
[1737816875318,5.35608314,3310.4,3310.3,0.4779]
[1737816878017,0.48342,3310.2,3310.1,0.50013556]
[1737816878417,4.35142185,3310.2,3310.1,0.50013556]
[1737816879015,4.35142185,3310.2,3310.1,0.98357556]
[1737816880022,4.35142185,3310.2,3310.1,0.50013556]
[1737816880821,4.35142185,3310.2,3310.1,0.98357556]
[1737816883132,3.86800185,3310.2,3310.1,0.98357556]
[1737816883329,3.2078,3310.6,3310.5,0.48338]
[1737816883629,0.48334,3310.8,3310.7,0.48335]
[1737816883818,0.48334,3310.8,3310.7,41.28335]
[1737816884024,0.937,3311.0,3310.7,40.8]
[1737816884331,0.48332,3310.9,3310.8,0.48333]
[1737816884531,0.48332,3310.9,3310.8,0.486]
[1737816884733,4.4686511,3310.9,3310.8,0.96933]
[1737816884936,4.4686511,3310.9,3310.8,0.486]
[1737816886634,3.9853311,3310.9,3310.8,0.96933]
[1737816886830,3.9853311,3310.9,3310.8,0.486]
[1737816887130,0.48332,3310.9,3310.8,0.486]
[1737816887432,4.4311156,3310.9,3310.8,0.486]
[1737816891631,3.9477956,3310.9,3310.8,0.486]
[1737816892134,3.9477956,3310.9,3310.8,0.96933]
[1737816893139,3.2078,3311.1,3310.8,0.486]
[1737816893438,3.2078,3311.1,3311.0,0.4833]
[1737816893833,0.48327,3311.3,3310.9,2.78970733]
[1737816894032,0.48327,3311.3,3311.1,0.48328]
[1737816894429,0.48327,3311.3,3311.2,0.5095]
[1737816895944,5.6285,3311.6,3311.2,0.5095]
[1737816896429,0.48326,3311.3,3311.2,0.5095]
[1737816897534,3.94618369,3311.5,3310.9,0.4743]
[1737816897739,0.98398,3311.2,3311.0,0.48329]
[1737816898940,0.98398,3311.2,3311.1,1.09547227]
[1737816899143,0.5007,3311.2,3311.1,1.57876227]
[1737816901629,0.48325,3311.4,3311.2,0.48327]
[1737816901942,0.48325,3311.4,3311.3,1.09547227]
[1737816902339,4.39632131,3311.4,3311.3,1.09547227]
[1737816905242,3.2078,3311.6,3311.3,1.09547227]
[1737816905443,3.2078,3311.6,3311.5,1.57870227]
[1737816905642,3.2078,3311.6,3311.5,0.48323]
[1737816905943,3.69102,3311.6,3311.4,3.29834155]
[1737816906848,3.69102,3311.6,3311.2,0.9916]
[1737816906849,0.48326,3311.3,3311.2,0.9916]
[1737816907144,0.48325,3311.4,3310.9,0.98861]
[1737816907345,1.97279,3311.2,3310.9,1.49291]
[1737816907846,0.48332,3310.9,3310.7,4.16574]
[1737816908144,0.4756,3310.8,3310.7,3.69114]
[1737816909646,0.48331,3311.0,3310.9,0.48332]
[1737816909846,0.48331,3311.0,3310.9,2.31321155]
[1737816910144,0.48331,3311.0,3310.9,2.79653155]
[1737816910844,0.48331,3311.0,3310.9,2.31321155]
[1737816912343,0.48331,3311.0,3310.9,2.79653155]
[1737816913139,0.48331,3311.0,3310.9,2.31321155]
[1737816921453,4.9178715,3311.1,3310.9,2.79653155]
[1737816921755,4.2217,3311.2,3311.0,0.4833]
[1737816921756,4.70498,3311.2,3311.0,0.4833]
[1737816921948,3.2078,3311.2,3311.1,0.99419]
[1737816922552,0.48327,3311.3,3311.1,0.99419]
[1737816922947,0.4771,3311.4,3311.1,0.5109]
[1737816922948,4.41387913,3311.2,3311.1,0.5109]
[1737816923153,0.4771,3311.4,3311.1,0.5109]
[1737816923350,0.937,3311.5,3311.4,0.48325]
[1737816923547,5.62844572,3311.6,3311.3,2.31321155]
[1737816923748,5.62844572,3311.6,3311.5,0.48323]
[1737816924153,5.62844572,3311.6,3311.5,0.96743]
[1737816924351,6.11166572,3311.6,3311.5,0.4842]
[1737816925359,2.90386572,3311.6,3311.5,0.4842]
[1737816926856,2.42064572,3311.6,3311.5,0.4842]
[1737816927357,0.48774556,3311.7,3311.5,0.4842]
[1737816927757,3.90389622,3311.6,3311.5,0.4842]
[1737816928458,4.38711622,3311.6,3311.5,0.4842]
[1737816930458,3.90389622,3311.6,3311.5,0.96743]
[1737816931252,4.38711622,3311.6,3311.5,0.4842]
[1737816933865,4.38711622,3311.6,3311.5,1.57918955]
[1737816934466,3.90389622,3311.6,3311.5,2.06241955]
[1737816935867,3.90389622,3311.6,3311.5,1.57918955]
[1737816936061,4.38711622,3311.6,3311.5,1.09498955]
[1737816939769,0.00453556,3311.7,3311.5,1.09498955]
[1737816939969,0.00453556,3311.7,3311.6,1.00002]
[1737816941067,3.2078,3311.9,3311.8,0.48319]
[1737816941264,3.2078,3311.9,3311.8,1.57817955]
[1737816941872,3.2078,3311.9,3311.8,2.05357955]
[1737816942871,3.69097,3311.9,3311.8,2.05357955]
[1737816944274,0.48317,3311.9,3311.8,2.05357955]
[1737816945676,0.00453556,3312.2,3311.8,1.57038955]
[1737816945877,0.48766556,3312.2,3312.1,1.09498955]
[1737816946870,0.48766556,3312.2,3312.1,1.57812955]
[1737816947477,0.00453556,3312.2,3312.1,1.57812955]
[1737816948677,0.00453556,3312.2,3312.1,0.48314]
[1737816951075,0.00453556,3312.2,3312.0,1.09498955]
[1737816951275,0.00453556,3312.2,3312.0,1.57813955]
[1737816951673,0.48766556,3312.2,3312.0,1.57813955]
[1737816953381,0.00453556,3312.2,3312.1,0.48314]
[1737816954079,0.48766556,3312.2,3312.1,0.48314]
[1737816954481,0.48766556,3312.2,3312.0,1.57813955]
[1737816954777,0.48766556,3312.2,3312.1,0.48314]
[1737816956373,0.48766556,3312.2,3312.0,1.57813955]
[1737816956572,0.48766556,3312.2,3312.1,0.48314]
[1737816957265,0.00453556,3312.2,3312.1,0.48314]
[1737816957676,0.48766556,3312.2,3312.1,0.48314]
[1737816958469,0.00453556,3312.2,3312.1,0.48314]
[1737816959379,0.00453556,3312.2,3312.1,0.98314]
[1737816966776,6.56444572,3312.8,3312.7,0.48306]
[1737816966777,2.42064572,3312.8,3312.7,0.48306]
[1737816966980,3.2078,3313.2,3312.7,1.09498955]
[1737816967174,0.48301,3313.0,3312.9,1.09498955]
[1737816968486,4.42090155,3313.1,3312.9,1.09498955]
[1737816968780,4.42090155,3313.1,3313.0,0.48301]
[1737816969686,0.5117,3313.1,3313.0,0.48301]
[1737816969886,0.5117,3313.1,3313.0,1.00641]
[1737816970388,0.9737,3313.3,3313.2,0.48298]
[1737816970685,0.9737,3313.3,3313.2,1.57796955]
[1737816971388,1.45667,3313.3,3313.2,1.09498955]
[1737816971685,0.9737,3313.3,3313.2,1.09498955]
[1737816971876,1.45667,3313.3,3313.2,1.09498955]
[1737816972083,0.9737,3313.3,3313.2,1.57796955]
[1737816972480,0.9737,3313.3,3313.2,1.09498955]
[1737816973189,0.9737,3313.3,3313.2,1.57796955]
[1737816973687,1.45667,3313.3,3313.2,1.09498955]
[1737816974189,0.9737,3313.3,3313.2,1.09498955]
[1737816974386,1.45667,3313.3,3313.2,1.09498955]
[1737816980188,0.5028,3313.5,3313.2,1.09498955]
[1737816980396,0.98574,3313.5,3313.4,1.09498955]
[1737816981093,0.98574,3313.5,3313.4,1.60038955]